fUST/lending_fUST_20241115
["ID","MTS","AMOUNT","RATE_DAILY","PERIOD"]
[342227528,1731600647859,-151.0,0.00018822,2]
[342227529,1731600647872,-151.0,0.00018822,2]
[342227530,1731600647882,-229.255726,0.00018822,2]
[342227531,1731600647892,-229.255726,0.00018822,2]
[342227532,1731600647902,-294.497,0.00018822,2]
[342227533,1731600647912,-294.497,0.00018822,2]
[342227534,1731600647922,-151.0,0.00018822,2]
[342227535,1731600647932,-1500.0,0.00018856,2]
[342227536,1731600647942,-662.667239,0.000189,2]
[342227537,1731600647952,-151.0,0.000189,2]
[342227538,1731600647962,-151.0,0.000189,2]
[342227539,1731600647972,-151.0,0.000189,2]
[342227540,1731600647982,-151.0,0.000189,2]
[342227541,1731600647992,-151.0,0.000189,2]
[342227542,1731600648002,-151.0,0.000189,2]
[342227543,1731600648011,-151.0,0.000189,2]
[342227544,1731600648021,-151.0,0.000189,2]
[342227545,1731600648031,-151.0,0.00018904,2]
[342227546,1731600648041,-186.73817,0.00018904,2]
[342227547,1731600648051,-186.73817,0.00018904,2]
[342227548,1731600648060,-153.289327,0.00018904,2]
[342227549,1731600648070,-151.0,0.00018904,2]
[342227550,1731600648080,-284.683626,0.00018904,2]
[342227551,1731600648094,-284.683626,0.00018904,2]
[342227552,1731600648105,-152.331131,0.00018904,2]
[342227553,1731600648115,-526.71,0.00018904,2]
[342227554,1731600648127,-151.0,0.00018904,2]
[342227555,1731600648137,-151.0,0.00018904,2]
[342227556,1731600648147,-151.0,0.00018904,2]
[342227557,1731600648157,-500.0,0.00018904,2]
[342227558,1731600648167,-528.95,0.00018904,2]
[342227559,1731600648177,-500.0,0.00018904,2]
[342227560,1731600648186,-440.091382,0.00018904,2]
[342227561,1731600648196,-440.091382,0.00018904,2]
[342227562,1731600648206,-518.52,0.00018904,2]
[342227563,1731600648216,-151.0,0.00018904,2]
[342227564,1731600648227,-1182.128216,0.00018904,2]
[342227565,1731600648236,-1182.128216,0.00018904,2]
[342227566,1731600648246,-370.78596007,0.00018904,2]
[342227567,1731600648257,-500.0,0.00018904,2]
[342227568,1731600648268,-500.0,0.00018904,2]
[342227569,1731600648278,-504.45,0.00018904,2]
[342227570,1731600648288,-519.99,0.00018904,2]
[342227571,1731600648298,-151.0,0.00018904,2]
[342227572,1731600648308,-524.78,0.00018904,2]
[342227573,1731600648318,-514.28,0.00018904,2]
[342227574,1731600648329,-500.0,0.00018904,2]
[342227575,1731600648339,-600.82,0.00018904,2]
[342227576,1731600648349,-553.76,0.00018904,2]
[342227577,1731600648360,-532.40639806,0.00018904,2]
[342227578,1731600648373,-727.47,0.00018904,2]
[342227579,1731600648384,-500.0,0.00018904,2]
[342227580,1731600648394,-500.0,0.00018904,2]
[342227581,1731600648405,-500.0,0.00018904,2]
[342227582,1731600648415,-500.0,0.00018904,2]
[342227583,1731600648424,-530.09,0.00018904,2]
[342227584,1731600648435,-500.0,0.00018904,2]
[342227585,1731600648444,-500.0,0.00018904,2]
[342227586,1731600648455,-500.0,0.00018904,2]
[342227587,1731600648464,-584.2,0.00018904,2]
[342227588,1731600648474,-500.0,0.00018904,2]
[342227589,1731600648485,-534.43,0.00018904,2]
[342227590,1731600648494,-1550.66,0.00018904,2]
[342227591,1731600648504,-500.0,0.00018904,2]
[342227592,1731600648514,-581.14,0.00018904,2]
[342227593,1731600648524,-555.67,0.00018904,2]
[342227594,1731600648533,-500.05,0.00018904,2]
[342227595,1731600648543,-718.72,0.00018904,2]
[342227596,1731600648553,-707.27,0.00018904,2]
[342227597,1731600648563,-621.51,0.00018904,2]
[342227598,1731600648573,-1248.9,0.00018904,2]
[342227599,1731600648583,-1228.06,0.00018904,2]
[342227600,1731600648593,-291.74630029,0.00018904,2]
[342227601,1731600648607,-618.02,0.00018904,2]
[342227602,1731600648617,-500.0,0.00018904,2]
[342227603,1731600648630,-500.0,0.00018904,2]
[342227604,1731600648642,-1051.3,0.00018904,2]
[342227605,1731600648653,-726.33,0.00018904,2]
[342227606,1731600648663,-1449.48441515,0.00018904,2]
[342227607,1731600648818,-87.49558485,0.00018904,2]
[342227608,1731600648828,-805.18982013,0.00018904,2]
[342227609,1731600649539,-500.0,0.00016773,2]
[342227610,1731600649550,-1000.0,0.00017321,2]
[342227611,1731600649560,-257.46,0.00018082,2]
[342227612,1731600649572,-678.59,0.00018082,2]
[342227613,1731600649583,-1500.0,0.00018322,2]
[342227614,1731600649593,-936.05,0.00018356,2]
[342227615,1731600649606,-936.05,0.0001863,2]
[342227616,1731600649616,-64.47017987,0.00018904,2]
[342227617,1731600649629,-691.63,0.00018904,2]
[342227618,1731600649638,-500.0,0.00018904,2]
[342227619,1731600649648,-558.93,0.00018904,2]
[342227620,1731600649658,-551.7,0.00018904,2]
[342227621,1731600649667,-18922.5,0.00018904,2]
[342227622,1731600649679,-500.0,0.00018904,2]
[342227623,1731600649690,-500.0,0.00018904,2]
[342227624,1731600649700,-500.0,0.00018904,2]
[342227625,1731600649709,-1302.21,0.00018904,2]
[342227626,1731600649718,-605.56,0.00018904,2]
[342227627,1731600649727,-1546.17,0.00018904,2]
[342227628,1731600649737,-1291.87,0.00018904,2]
[342227629,1731600649746,-500.0,0.00018904,2]
[342227630,1731600649756,-500.0,0.00018904,2]
[342227631,1731600649765,-576.85,0.00018904,2]
[342227632,1731600649775,-714.42,0.00018904,2]
[342227633,1731600649785,-688.63,0.00018904,2]
[342227634,1731600649794,-729.16,0.00018904,2]
[342227635,1731600649804,-823.71,0.00018904,2]
[342227636,1731600649814,-560.55,0.00018904,2]
[342227637,1731600649824,-500.0,0.00018904,2]
[342227638,1731600649834,-731.0,0.00018904,2]
[342227639,1731600649844,-500.0,0.00018904,2]
[342227640,1731600649854,-500.0,0.00018904,2]
[342227641,1731600649863,-2790.79,0.00018904,2]
[342227642,1731600649875,-500.0,0.00018904,2]
[342227643,1731600649884,-500.0,0.00018904,2]
[342227644,1731600649894,-2082.9,0.00018904,2]
[342227645,1731600649904,-1188.51,0.00018904,2]
[342227646,1731600649915,-617.01,0.00018904,2]
[342227647,1731600649924,-539.72,0.00018904,2]
[342227648,1731600649933,-3464.23,0.00018904,2]
[342227649,1731600649942,-588.65,0.00018904,2]
[342227650,1731600649952,-707.17,0.00018904,2]
[342227651,1731600649961,-500.0,0.00018904,2]
[342227652,1731600649970,-809.9,0.00018904,2]
[342227653,1731600649980,-6092.17,0.00018904,2]
[342227654,1731600649989,-500.54,0.00018904,2]
[342227655,1731600649999,-614.62,0.00018904,2]
[342227656,1731600650008,-500.0,0.00018904,2]
[342227657,1731600650018,-4200.34,0.00018904,2]
[342227658,1731600650027,-622.48,0.00018904,2]
[342227659,1731600650037,-500.0,0.00018904,2]
[342227660,1731600650046,-500.0,0.00018904,2]
[342227661,1731600650055,-676.2,0.00018904,2]
[342227662,1731600650064,-500.0,0.00018904,2]
[342227663,1731600650073,-500.0,0.00018904,2]
[342227664,1731600650082,-539.4,0.00018904,2]
[342227665,1731600650091,-758.82,0.00018904,2]
[342227666,1731600650100,-4851.72,0.00018904,2]
[342227667,1731600650110,-936.05,0.00018904,2]
[342227668,1731600650118,-153.997426,0.0001894,2]
[342227669,1731600650128,-500.0,0.00018973,2]
[342227670,1731600650137,-500.0,0.00018973,2]
[342227671,1731600650146,-272.63665587,0.00018973,2]
[342227672,1731600650155,-500.0,0.00018973,2]
[342227673,1731600650164,-500.0,0.00018973,2]
[342227674,1731600650173,-500.0,0.00018973,2]
[342227675,1731600650182,-445.67707491,0.00018973,2]
[342227676,1731600650191,-500.0,0.00018973,2]
[342227677,1731600650200,-500.0,0.00018973,2]
[342227678,1731600650209,-500.0,0.00018973,2]
[342227679,1731600650219,-162.41887694,0.00018973,2]
[342227680,1731600650229,-500.0,0.00018973,2]
[342227681,1731600650238,-500.0,0.00018973,2]
[342227682,1731600650247,-500.0,0.00018973,2]
[342227683,1731600650257,-151.0,0.00018973,2]
[342227684,1731600650266,-175.887871,0.00018973,2]
[342227685,1731600650275,-1269.298562,0.00018973,2]
[342227686,1731600650284,-1269.298562,0.00018973,2]
[342227687,1731600650294,-12196.62887377,0.00018999,2]
[342227688,1731600650303,-414.32263164,0.00018999,2]
[342227689,1731600650313,-151.0,0.00018999,2]
[342227690,1731600650323,-151.0,0.00018999,2]
[342227691,1731600650332,-321.499132,0.00018999,2]
[342227692,1731600650341,-321.499132,0.00018999,2]
[342227693,1731600650352,-539.004771,0.00018999,2]
[342227694,1731600650362,-539.004771,0.00018999,2]
[342227695,1731600650373,-196141.26176737,0.00019,2]
[342227696,1731600650382,-590.50531424,0.00019,2]
[342227697,1731600650392,-19364.49,0.00019,2]
[342227698,1731600650401,-250.2441437,0.00019,2]
[342227699,1731600650410,-662.667239,0.00019,2]
[342227700,1731600650420,-151.0,0.00019,2]
[342227701,1731600650430,-151.0,0.00019,2]
[342227702,1731600650439,-151.0,0.00019,2]
[342227703,1731600650449,-151.0,0.00019,2]
[342227704,1731600650458,-151.0,0.00019,2]
[342227705,1731600650467,-151.0,0.00019,2]
[342227706,1731600650476,-151.0,0.00019,2]
[342227707,1731600650485,-151.0,0.00019,2]
[342227708,1731600650495,-151.0,0.00019,2]
[342227709,1731600650510,-186.73817,0.00019,2]
[342227710,1731600650519,-186.73817,0.00019,2]
[342227711,1731600650534,-151.0,0.00019,2]
[342227712,1731600650548,-151.0,0.00019,2]
[342227713,1731600650559,-284.683626,0.00019,2]
[342227714,1731600650568,-284.683626,0.00019,2]
[342227715,1731600650577,-151.0,0.00019,2]
[342227716,1731600650588,-151.0,0.00019,2]
[342227717,1731600650600,-151.0,0.00019,2]
[342227718,1731600650611,-440.091382,0.00019,2]
[342227719,1731600650620,-440.091382,0.00019,2]
[342227720,1731600650635,-151.0,0.00019,2]
[342227721,1731600650644,-151.0,0.00019,2]
[342227722,1731600650653,-151.0,0.00019,2]
[342227723,1731600650663,-1182.128216,0.00019,2]
[342227724,1731600650674,-1182.128216,0.00019,2]
[342227725,1731600650683,-151.0,0.00019,2]
[342227726,1731600650692,-723.1621,0.00019,2]
[342227727,1731600650702,-723.1621,0.00019,2]
[342227728,1731600650711,-151.0,0.00019,2]
[342227729,1731600650722,-151.0,0.00019,2]
[342227730,1731600650733,-151.0,0.00019,2]
[342227731,1731600650743,-151.0,0.00019,2]
[342227732,1731600650752,-2380.240832,0.00019,2]
[342227733,1731600650761,-2380.240832,0.00019,2]
[342227734,1731600650771,-392.887161,0.00019,2]
[342227735,1731600650780,-392.887161,0.00019,2]
[342227736,1731600650789,-853.3678,0.00019,2]
[342227737,1731600650799,-229.255726,0.00019,2]
[342227738,1731600650808,-229.255726,0.00019,2]
[342227739,1731600650817,-151.0,0.00019,2]
[342227740,1731600650826,-188.838664,0.00019,2]
[342227741,1731600650835,-383.978521,0.00019,2]
[342227742,1731600650844,-383.978521,0.00019,2]
[342227743,1731600650853,-294.497,0.00019,2]
[342227744,1731600650862,-321.499132,0.00019,2]
[342227745,1731600650874,-321.499132,0.00019,2]
[342227746,1731600650884,-294.497,0.00019,2]
[342227747,1731600650893,-209.520677,0.00019,2]
[342227748,1731600650903,-539.004771,0.00019,2]
[342227749,1731600650912,-580.934609,0.00019,2]
[342227750,1731600650922,-539.004771,0.00019,2]
[342227751,1731600650931,-580.934609,0.00019,2]
[342227752,1731600650941,-1269.298562,0.00019,2]
[342227753,1731600650950,-1269.298562,0.00019,2]
[342227754,1731600650960,-151.0,0.00019,2]
[342227755,1731600650969,-151.0,0.00019076,2]
[342227756,1731600650979,-752.400114,0.00019145,2]
[342227757,1731600650988,-465.96157581,0.00019167,2]
[342227758,1731600650998,-2178.43285027,0.00019177,4]
[342227759,1731600651007,-500.0,0.00019178,2]
[342227760,1731600651017,-500.0,0.00019178,2]
[342227761,1731600651027,-526.71,0.00019178,2]
[342227762,1731600651036,-500.0,0.00019178,2]
[342227763,1731600651046,-528.95,0.00019178,2]
[342227764,1731600651055,-500.0,0.00019178,2]
[342227765,1731600651064,-518.52,0.00019178,2]
[342227766,1731600651074,-500.0,0.00019178,2]
[342227767,1731600651083,-500.0,0.00019178,2]
[342227768,1731600651092,-586.42,0.00019178,2]
[342227769,1731600651101,-586.42,0.00019178,2]
[342227770,1731600651111,-586.42,0.00019178,2]
[342227771,1731600651120,-586.42,0.00019178,2]
[342227772,1731600651133,-586.42,0.00019178,2]
[342227773,1731600651142,-586.42,0.00019178,2]
[342227774,1731600651151,-20.45485378,0.00019178,2]
[342227775,1731600651164,-565.96514622,0.00019178,2]
[342227776,1731600651173,-586.42,0.00019178,2]
[342227777,1731600651183,-586.42,0.00019178,2]
[342227778,1731600651192,-586.42,0.00019178,2]
[342227779,1731600651201,-586.42,0.00019178,2]
[342227780,1731600651211,-504.45,0.00019178,2]
[342227781,1731600651220,-519.99,0.00019178,2]
[342227782,1731600651229,-524.78,0.00019178,2]
[342227783,1731600651239,-514.28,0.00019178,2]
[342227784,1731600651248,-600.82,0.00019178,2]
[342227785,1731600651257,-553.76,0.00019178,2]
[342227786,1731600651266,-727.47,0.00019178,2]
[342227787,1731600651276,-500.0,0.00019178,2]
[342227788,1731600651285,-500.0,0.00019178,2]
[342227789,1731600651294,-500.0,0.00019178,2]
[342227790,1731600651304,-500.0,0.00019178,2]
[342227791,1731600651313,-530.09,0.00019178,2]
[342227792,1731600651322,-500.0,0.00019178,2]
[342227793,1731600651332,-500.0,0.00019178,2]
[342227794,1731600651341,-500.0,0.00019178,2]
[342227795,1731600651351,-584.2,0.00019178,2]
[342227796,1731600651360,-500.0,0.00019178,2]
[342227797,1731600651370,-196.52884539,0.00019178,2]
[342227798,1731600651382,-534.43,0.00019178,2]
[342227799,1731600651391,-1550.66,0.00019178,2]
[342227800,1731600651401,-500.0,0.00019178,2]
[342227801,1731600651410,-581.14,0.00019178,2]
[342227802,1731600651419,-555.67,0.00019178,2]
[342227803,1731600651429,-718.72,0.00019178,2]
[342227804,1731600651439,-500.05,0.00019178,2]
[342227805,1731600651448,-707.27,0.00019178,2]
[342227806,1731600651457,-621.51,0.00019178,2]
[342227807,1731600651466,-1248.9,0.00019178,2]
[342227808,1731600651476,-1228.06,0.00019178,2]
[342227809,1731600651486,-618.02,0.00019178,2]
[342227810,1731600651495,-500.0,0.00019178,2]
[342227811,1731600651504,-150.15561797,0.00019178,2]
[342227812,1731600651513,-500.0,0.00019178,2]
[342227813,1731600651524,-1051.3,0.00019178,2]
[342227814,1731600651533,-726.33,0.00019178,2]
[342227815,1731600651543,-1536.98,0.00019178,2]
[342227816,1731600651553,-869.66,0.00019178,2]
[342227817,1731600651562,-691.63,0.00019178,2]
[342227818,1731600651572,-500.0,0.00019178,2]
[342227819,1731600651583,-551.7,0.00019178,2]
[342227820,1731600651596,-558.93,0.00019178,2]
[342227821,1731600651606,-18922.5,0.00019178,2]
[342227822,1731600651615,-500.0,0.00019178,2]
[342227823,1731600651626,-500.0,0.00019178,2]
[342227824,1731600651637,-500.0,0.00019178,2]
[342227825,1731600651646,-1302.21,0.00019178,2]
[342227826,1731600651656,-605.56,0.00019178,2]
[342227827,1731600651666,-1546.17,0.00019178,2]
[342227828,1731600651675,-1291.87,0.00019178,2]
[342227829,1731600651684,-260.39846704,0.00019178,2]
[342227830,1731600651694,-299.84,0.00019178,2]
[342227831,1731600651704,-500.0,0.00019178,2]
[342227832,1731600651713,-500.0,0.00019178,2]
[342227833,1731600651722,-576.85,0.00019178,2]
[342227834,1731600651732,-714.42,0.00019178,2]
[342227835,1731600651743,-500.0,0.00019178,2]
[342227836,1731600651753,-688.63,0.00019178,2]
[342227837,1731600651762,-500.0,0.00019178,2]
[342227838,1731600651772,-729.16,0.00019178,2]
[342227839,1731600651781,-823.71,0.00019178,2]
[342227840,1731600651792,-560.55,0.00019178,2]
[342227841,1731600651801,-500.0,0.00019178,2]
[342227842,1731600651811,-731.0,0.00019178,2]
[342227843,1731600651821,-500.0,0.00019178,2]
[342227844,1731600651830,-500.0,0.00019178,2]
[342227845,1731600651840,-2790.79,0.00019178,2]
[342227846,1731600651849,-500.0,0.00019178,2]
[342227847,1731600651860,-500.0,0.00019178,2]
[342227848,1731600651869,-2082.9,0.00019178,2]
[342227849,1731600651880,-1188.51,0.00019178,2]
[342227850,1731600651890,-617.01,0.00019178,2]
[342227851,1731600651899,-539.72,0.00019178,2]
[342227852,1731600651909,-3464.23,0.00019178,2]
[342227853,1731600651918,-588.65,0.00019178,2]
[342227854,1731600651928,-707.17,0.00019178,2]
[342227855,1731600651938,-500.0,0.00019178,2]
[342227856,1731600651948,-809.9,0.00019178,2]
[342227857,1731600651958,-3417.63770467,0.00019178,2]
[342227858,1731600651971,-2312.13563876,0.00019178,2]
[342227859,1731600651983,-362.39665657,0.00019178,2]
[342227860,1731600651994,-500.54,0.00019178,2]
[342227861,1731600652003,-614.62,0.00019178,2]
[342227862,1731600652012,-546.68,0.00019178,2]
[342227863,1731600652022,-4200.34,0.00019178,2]
[342227864,1731600652031,-622.48,0.00019178,2]
[342227865,1731600652041,-500.0,0.00019178,2]
[342227866,1731600652051,-500.0,0.00019178,2]
[342227867,1731600652060,-676.2,0.00019178,2]
[342227868,1731600652070,-500.0,0.00019178,2]
[342227869,1731600652081,-500.0,0.00019178,2]
[342227870,1731600652091,-539.4,0.00019178,2]
[342227871,1731600652101,-758.82,0.00019178,2]
[342227872,1731600652111,-4851.72,0.00019178,2]
[342227873,1731600652121,-936.05,0.00019178,2]
[342227874,1731600652131,-160.54661,0.00019178,2]
[342227875,1731600652141,-175.769986,0.00019178,2]
[342227876,1731600652150,-153.0,0.00019178,2]
[342227877,1731600652159,-153.0,0.00019178,2]
[342227878,1731600652168,-153.0,0.00019178,2]
[342227879,1731600652178,-153.0,0.00019178,2]
[342227880,1731600652188,-153.0,0.00019178,2]
[342227881,1731600652199,-153.0,0.00019178,2]
[342227882,1731600652208,-153.0,0.00019178,2]
[342227883,1731600652218,-153.0,0.00019178,2]
[342227884,1731600652228,-153.0,0.00019178,2]
[342227885,1731600652238,-153.0,0.00019178,2]
[342227886,1731600652253,-153.0,0.00019178,2]
[342227887,1731600652275,-153.0,0.00019178,2]
[342227888,1731600652295,-153.0,0.00019178,2]
[342227889,1731600652316,-153.0,0.00019178,2]
[342227890,1731600652327,-153.0,0.00019178,2]
[342227891,1731600652337,-150.05796941,0.00019452,2]
[342227892,1731600652347,-150.20947211,0.00019452,2]
[342227893,1731600652357,-500.0,0.00019452,2]
[342227894,1731600652367,-998.65090603,0.00019452,2]
[342227895,1731600652378,-151.0,0.00019452,2]
[342227896,1731600652388,-186.73817,0.00019452,2]
[342227897,1731600652397,-186.73817,0.00019452,2]
[342227898,1731600652407,-151.0,0.00019452,2]
[342227899,1731600652544,-284.683626,0.00019452,2]
[342227900,1731600652558,-284.683626,0.00019452,2]
[342227901,1731600652568,-526.71,0.00019452,2]
[342227902,1731600652577,-151.0,0.00019452,2]
[342227903,1731600652588,-151.0,0.00019452,2]
[342227904,1731600652599,-151.0,0.00019452,2]
[342227905,1731600652610,-500.0,0.00019452,2]
[342227906,1731600652620,-528.95,0.00019452,2]
[342227907,1731600652645,-500.0,0.00019452,2]
[342227908,1731600652655,-440.091382,0.00019452,2]
[342227909,1731600652664,-440.091382,0.00019452,2]
[342227910,1731600652675,-518.52,0.00019452,2]
[342227911,1731600652684,-151.0,0.00019452,2]
[342227912,1731600652694,-151.0,0.00019452,2]
[342227913,1731600652703,-151.0,0.00019452,2]
[342227914,1731600652713,-1182.128216,0.00019452,2]
[342227915,1731600652722,-1182.128216,0.00019452,2]
[342227916,1731600652731,-500.0,0.00019452,2]
[342227917,1731600652741,-500.0,0.00019452,2]
[342227918,1731600652750,-586.42,0.00019452,2]
[342227919,1731600652760,-504.45,0.00019452,2]
[342227920,1731600652769,-174.117628,0.00019452,2]
[342227921,1731600652780,-519.99,0.00019452,2]
[342227922,1731600652789,-524.78,0.00019452,2]
[342227923,1731600652799,-514.28,0.00019452,2]
[342227924,1731600652809,-723.1621,0.00019452,2]
[342227925,1731600652819,-723.1621,0.00019452,2]
[342227926,1731600652828,-600.82,0.00019452,2]
[342227927,1731600652838,-553.76,0.00019452,2]
[342227928,1731600652848,-727.47,0.00019452,2]
[342227929,1731600652858,-500.0,0.00019452,2]
[342227930,1731600652868,-500.0,0.00019452,2]
[342227931,1731600652885,-485.5116,0.00019452,2]
[342227932,1731600652894,-500.0,0.00019452,2]
[342227933,1731600652904,-530.09,0.00019452,2]
[342227934,1731600652914,-472.7237399,0.00019452,2]
[342227935,1731600652925,-151.0,0.00019452,2]
[342227936,1731600652936,-151.0,0.00019452,2]
[342227937,1731600652946,-500.0,0.00019452,2]
[342227938,1731600652956,-500.0,0.00019452,2]
[342227939,1731600652967,-151.0,0.00019452,2]
[342227940,1731600652977,-151.0,0.00019452,2]
[342227941,1731600652988,-584.2,0.00019452,2]
[342227942,1731600653003,-500.0,0.00019452,2]
[342227943,1731600653013,-534.43,0.00019452,2]
[342227944,1731600653023,-1550.66,0.00019452,2]
[342227945,1731600653034,-500.0,0.00019452,2]
[342227946,1731600653044,-581.14,0.00019452,2]
[342227947,1731600653054,-555.67,0.00019452,2]
[342227948,1731600653064,-718.72,0.00019452,2]
[342227949,1731600653073,-500.05,0.00019452,2]
[342227950,1731600653083,-707.27,0.00019452,2]
[342227951,1731600653093,-621.51,0.00019452,2]
[342227952,1731600653103,-1228.06,0.00019452,2]
[342227953,1731600653113,-1248.9,0.00019452,2]
[342227954,1731600653125,-618.02,0.00019452,2]
[342227955,1731600653137,-500.0,0.00019452,2]
[342227956,1731600653146,-500.0,0.00019452,2]
[342227957,1731600653156,-784.48844397,0.00019452,2]
[342227958,1731600653326,-266.81155603,0.00019452,2]
[342227959,1731600653336,-726.33,0.00019452,2]
[342227960,1731600653346,-2380.240832,0.00019452,2]
[342227961,1731600653355,-2380.240832,0.00019452,2]
[342227962,1731600653364,-1536.98,0.00019452,2]
[342227963,1731600653377,-869.66,0.00019452,2]
[342227964,1731600653386,-392.887161,0.00019452,2]
[342227965,1731600653397,-392.887161,0.00019452,2]
[342227966,1731600653407,-691.63,0.00019452,2]
[342227967,1731600653416,-500.0,0.00019452,2]
[342227968,1731600653426,-551.7,0.00019452,2]
[342227969,1731600653436,-558.93,0.00019452,2]
[342227970,1731600653446,-229.255726,0.00019452,2]
[342227971,1731600653456,-229.255726,0.00019452,2]
[342227972,1731600653466,-1656.79993882,0.00019452,2]
[342227973,1731600653478,-1335.65096749,0.00019452,2]
[342227974,1731600653490,-268.4391,0.00019452,2]
[342227975,1731600653501,-4081.45751148,0.00019452,2]
[342227976,1731600653525,-1919.37504981,0.00019452,2]
[342227977,1731600653741,-203.679933,0.00018082,2]
[342227978,1731600653750,-153.0,0.00019178,2]
[342227979,1731600653760,-6042.429367,0.00019452,2]
[342227980,1731600653772,-3618.3480654,0.00019452,2]
[342227981,1731600653782,-500.0,0.00019452,2]
[342227982,1731600653792,-151.0,0.00019452,2]
[342227983,1731600653801,-500.0,0.00019452,2]
[342227984,1731600653810,-500.0,0.00019452,2]
[342227985,1731600653820,-383.978521,0.00019452,2]
[342227986,1731600653829,-383.978521,0.00019452,2]
[342227987,1731600653838,-605.56,0.00019452,2]
[342227988,1731600653847,-1546.17,0.00019452,2]
[342227989,1731600653856,-294.497,0.00019452,2]
[342227990,1731600653865,-287.76405007,0.00019452,2]
[342227991,1731600653877,-33.73508193,0.00019452,2]
[342227992,1731600653886,-321.499132,0.00019452,2]
[342227993,1731600653895,-1291.87,0.00019452,2]
[342227994,1731600653905,-294.497,0.00019452,2]
[342227995,1731600653915,-500.0,0.00019452,2]
[342227996,1731600653924,-500.0,0.00019452,2]
[342227997,1731600653934,-576.85,0.00019452,2]
[342227998,1731600653943,-714.42,0.00019452,2]
[342227999,1731600653953,-688.63,0.00019452,2]
[342228000,1731600653963,-729.16,0.00019452,2]
[342228001,1731600653973,-823.71,0.00019452,2]
[342228002,1731600653982,-500.0,0.00019452,2]
[342228003,1731600653991,-560.55,0.00019452,2]
[342228004,1731600654001,-731.0,0.00019452,2]
[342228005,1731600654010,-500.0,0.00019452,2]
[342228006,1731600654019,-38.97878607,0.00019452,2]
[342228007,1731600654031,-461.02121393,0.00019452,2]
[342228008,1731600654040,-2790.79,0.00019452,2]
[342228009,1731600654050,-500.0,0.00019452,2]
[342228010,1731600654059,-500.0,0.00019452,2]
[342228011,1731600654068,-2082.9,0.00019452,2]
[342228012,1731600654078,-1188.51,0.00019452,2]
[342228013,1731600654087,-617.01,0.00019452,2]
[342228014,1731600654096,-539.72,0.00019452,2]
[342228015,1731600654106,-3464.23,0.00019452,2]
[342228016,1731600654117,-539.004771,0.00019452,2]
[342228017,1731600654127,-580.934609,0.00019452,2]
[342228018,1731600654137,-588.65,0.00019452,2]
[342228019,1731600654147,-707.17,0.00019452,2]
[342228020,1731600654156,-539.004771,0.00019452,2]
[342228021,1731600654165,-580.934609,0.00019452,2]
[342228022,1731600654174,-500.0,0.00019452,2]
[342228023,1731600654183,-809.9,0.00019452,2]
[342228024,1731600654193,-6092.17,0.00019452,2]
[342228025,1731600654203,-1269.298562,0.00019452,2]
[342228026,1731600654212,-500.54,0.00019452,2]
[342228027,1731600654221,-1269.298562,0.00019452,2]